[Event "FIDE World Junior U20-ch Girls 2025"]
[Site "Petrovac"]
[Date "2025.03.03"]
[Round "7.7"]
[White "Kaldarova, Ayaulym"]
[Black "Gaal, Zsoka"]
[Result "0-1"]
[Annotator "RC"]
[ECO "A14"]
[WhiteElo "2248"]
[BlackElo "2404"]
[PlyCount "110"]
[EventDate "2025.02.23"]
[EventType "swiss"]
[EventCountry "MNE"]
[SourceTitle "playchess.com"]
[Source "ChessBase"]
[SourceQuality "1"]
[TimeControl "40/5400+30:1800+30"]

1. Nf3 {[%emt 0:00:07]} Nf6 {[%emt 0:00:21]} 2. c4 {[%emt 0:00:15]} e6 {[%emt 0:00:13]} 3. g3 {[%emt 0:00:17]} d5 {[%emt 0:00:11]} 4. Bg2 {[%emt 0:00:43]} Be7 {[%emt 0:00:08]} 5. O-O {[%emt 0:00:10]} O-O {[%emt 0:00:07]} 6. d4 {[%emt 0:04:34]} a5 {[%emt 0:00:19]} 7. Qc2 {[%emt 0:03:28]} Nc6 {[%emt 0:00:24]} 8. Nbd2 {[%emt 0:07:38]} a4 {[%emt 0:11:31]} 9. a3 {[%emt 0:02:01]} dxc4 {[%emt 0:06:17]} 10. Qxc4 {[%emt 0:02:38]} Bd7 {[%emt 0:00:40]} 11. Qd3 {[%emt 0:06:37]} Qe8 {[%emt 0:05:28]} 12. Nc4 {[%emt 0:13:53]} Rd8 {[%emt 0:06:00]} 13. Bd2 {[%emt 0:06:13]} Na7 {[%emt 0:07:17]} 14. Qc2 {[%emt 0:05:41]} Bc6 {[%emt 0:01:14]} 15. Bg5 {[%emt 0:03:57]} Be4 {[%emt 0:04:02]} 16. Qc1 {[%emt 0:00:30]} Nb5 {[%emt 0:02:07]} 17. e3 {[%emt 0:02:50]} h6 {[%emt 0:00:37]} 18. Bxf6 {[%emt 0:01:13]} Bxf6 {[%emt 0:00:09]} 19. Nce5 {[%emt 0:02:49]} Rd5 {[%emt 0:03:31]} 20. Rd1 {[%emt 0:04:42]} c5 {[%emt 0:01:58]} 21. Qc4 {[%emt 0:04:18]} Nd6 {[%emt 0:05:22]} 22. Qe2 {[%emt 0:01:22]} cxd4 {[%emt 0:00:29]} 23. exd4 {[%emt 0:01:33]} Qb5 {[%emt 0:00:52]} 24. Qe3 {[%emt 0:07:01]} Qxb2 {[%emt 0:04:03]} 25. Nd7 {[%emt 0:01:25]} Rc8 {[%emt 0:02:01]} 26. Nxf6+ {[%emt 0:03:17]} gxf6 {[%emt 0:00:10]} 27. Ne1 {[%emt 0:06:08]} Bxg2 {[%emt 0:01:45]} 28. Rab1 {[%emt 0:00:14]} Qc3 {[%emt 0:03:22]} 29. Nxg2 {[%emt 0:00:26]} Qxe3 {[%emt 0:03:03]} 30. Nxe3 {[%emt 0:00:26]} Rb5 {[%emt 0:00:07]} 31. Rxb5 {[%emt 0:01:29]} Nxb5 {[%emt 0:00:07]} 32. Rb1 {[%emt 0:00:15]} Nd6 {[%emt 0:06:50]} 33. Rb6 {[%emt 0:00:40]} Rc6 {[%emt 0:00:23]} 34. Rxc6 {[%emt 0:02:30]} bxc6 {[%emt 0:00:06]} 35. Kf1 {[%emt 0:00:08]} e5 {[%emt 0:06:37]} 36. dxe5 {[%emt 0:04:57]} fxe5 {[%emt 0:00:05]} 37. Ke2 {[%emt 0:00:50]} f5 {[%emt 0:03:06]} 38. Kd3 {[%emt 0:01:17]} Kf7 {[%emt 0:00:05]} 39. Nd1 {[%emt 0:00:55]} Nb5 {[%emt 0:02:33]} 40. Nb2 {[%emt 0:00:18]} Ke6 {[%emt 0:00:53]} 41. Kc4 {[%emt 0:30:40]} Nxa3+ {[%emt 0:32:00]} 42. Kc5 {[%emt 0:00:00]} Nc2 {[%emt 0:00:00]} 43. Nxa4 {[%emt 0:00:00]} Nd4 {[%emt 0:00:00]} 44. Nb6 {[%emt 0:00:00]} Nf3 {[%emt 0:00:00]} 45. Kxc6 {[%emt 0:00:00]} Nxh2 {[%emt 0:00:00]} 46. Nc4 {[%emt 0:00:00]} e4 {[%emt 0:00:00]} 47. Ne3 {[%emt 0:00:00]} Ng4 {[%emt 0:00:00]} 48. Nd1 {[%emt 0:00:00]} f4 {[%emt 0:00:00]} 49. gxf4 {[%emt 0:00:00]} h5 {[%emt 0:00:00]} 50. Nc3 {[%emt 0:00:00]} Nxf2 {[%emt 0:00:00]} 51. Ne2 {[%emt 0:00:00]} h4 {[%emt 0:00:00]} 52. Kc5 {[%emt 0:00:00]} Kf5 {[%emt 0:00:00]} 53. Kd4 {[%emt 0:00:00]} h3 {[%emt 0:00:00]} 54. Ke3 {[%emt 0:00:00]} Nd1+ {[%emt 0:00:00]} 55. Kd2 {[%emt 0:00:00]} h2 {[%emt 0:00:00]} 0-1

[Event "FIDE World Junior U20-ch Girls 2025"]
[Site "Petrovac"]
[Date "2025.03.03"]
[Round "7.8"]
[White "Song, Yuxin"]
[Black "Orian, Noga"]
[Result "1/2-1/2"]
[Annotator "ChessBase"]
[ECO "B30"]
[WhiteElo "2381"]
[BlackElo "2210"]
[PlyCount "84"]
[EventDate "2025.02.23"]
[EventType "swiss"]
[EventCountry "MNE"]
[SourceTitle "playchess.com"]
[Source "ChessBase"]
[SourceQuality "1"]
[TimeControl "40/5400+30:1800+30"]

1. e4 {[%emt 0:00:03]} c5 {[%emt 0:03:26]} 2. Nf3 {[%emt 0:00:03]} Nc6 {[%emt 0:00:23]} 3. Bb5 {[%emt 0:00:05]} Nf6 {[%emt 0:00:36]} 4. Nc3 {[%emt 0:04:54]} Qc7 {[%emt 0:00:27]} 5. O-O {[%emt 0:00:38]} Nd4 {[%emt 0:00:31]} 6. Re1 {[%emt 0:00:10]} a6 {[%emt 0:00:20]} 7. Bf1 {[%emt 0:00:23]} Ng4 {[%emt 0:00:25]} 8. g3 {[%emt 0:03:19]} Nxf3+ {[%emt 0:00:22]} 9. Qxf3 {[%emt 0:00:09]} Ne5 {[%emt 0:00:04]} 10. Qe2 {[%emt 0:03:11]} e6 {[%emt 0:00:25]} 11. b3 {[%emt 0:06:13]} d6 {[%emt 0:00:44]} 12. Bb2 {[%emt 0:00:17]} Be7 {[%emt 0:00:26]} 13. Bg2 {[%emt 0:01:53]} O-O {[%emt 0:03:17]} 14. Nd1 {[%emt 0:02:43]} b5 {[%emt 0:02:25]} 15. Ne3 {[%emt 0:03:35]} Bb7 {[%emt 0:00:32]} 16. f4 {[%emt 0:08:40]} Nd7 {[%emt 0:01:21]} 17. d3 {[%emt 0:02:56]} Rfe8 {[%emt 0:06:12]} 18. Ng4 {[%emt 0:04:32]} e5 {[%emt 0:10:15]} 19. Bh3 {[%emt 0:09:10]} Rad8 {[%emt 0:11:06]} 20. Ne3 {[%emt 0:01:07]} Nb6 {[%emt 0:05:59]} 21. Rf1 {[%emt 0:13:02]} Bf8 {[%emt 0:02:35]} 22. c4 {[%emt 0:04:57]} bxc4 {[%emt 0:03:17]} 23. Nxc4 {[%emt 0:00:57]} Nxc4 {[%emt 0:00:43]} 24. bxc4 {[%emt 0:00:12]} Bc8 {[%emt 0:04:17]} 25. f5 {[%emt 0:00:30]} f6 {[%emt 0:03:56]} 26. Bg4 {[%emt 0:03:26]} Re7 {[%emt 0:04:40]} 27. Bc3 {[%emt 0:01:49]} Bd7 {[%emt 0:01:20]} 28. Qb2 {[%emt 0:02:51]} Rb8 {[%emt 0:02:40]} 29. Qa3 {[%emt 0:00:02]} Qc8 {[%emt 0:00:07]} 30. Rfb1 {[%emt 0:00:45]} Be8 {[%emt 0:00:30]} 31. Rb3 {[%emt 0:01:17]} Ra7 {[%emt 0:07:16]} 32. Rab1 {[%emt 0:10:32]} Rbb7 {[%emt 0:01:08]} 33. Rb6 {[%emt 0:02:06]} Bc6 {[%emt 0:06:44]} 34. R1b2 {[%emt 0:00:00]} Rxb6 {[%emt 0:01:07]} 35. Rxb6 {[%emt 0:00:02]} Be7 {[%emt 0:00:02]} 36. Qb3 {[%emt 0:05:45]} Bd8 {[%emt 0:02:29]} 37. Rb8 {[%emt 0:01:09]} Qc7 {[%emt 0:00:02]} 38. Bh5 {[%emt 0:00:52]} Kf8 {[%emt 0:01:53]} 39. Bd2 {[%emt 0:01:20]} Rb7 {[%emt 0:02:20]} 40. Rxb7 {[%emt 0:00:09]} Qxb7 {[%emt 0:00:17]} 41. Qc2 {[%emt 0:33:23]} Be8 {[%emt 0:31:52]} 42. Bd1 {[%emt 0:00:45]} Qb6 {[%emt 0:05:58]} 1/2-1/2

[Event "FIDE World Junior U20-ch Girls 2025"]
[Site "Petrovac"]
[Date "2025.03.03"]
[Round "7.9"]
[White "Shukhman, Anna"]
[Black "Pipiras, Filipa Fortuna"]
[Result "1-0"]
[Annotator "RC"]
[ECO "B40"]
[WhiteElo "2365"]
[BlackElo "2200"]
[PlyCount "113"]
[EventDate "2025.02.23"]
[EventType "swiss"]
[EventCountry "MNE"]
[SourceTitle "playchess.com"]
[Source "ChessBase"]
[SourceQuality "1"]
[TimeControl "40/5400+30:1800+30"]

1. e4 {[%emt 0:00:03]} c5 {[%emt 0:05:10]} 2. Nf3 {[%emt 0:00:04]} e6 {[%emt 0:00:08]} 3. d4 {[%emt 0:00:02]} cxd4 {[%emt 0:00:08]} 4. Nxd4 {[%emt 0:00:02]} Nf6 {[%emt 0:00:15]} 5. Nc3 {[%emt 0:00:03]} Nc6 {[%emt 0:00:06]} 6. Nxc6 {[%emt 0:00:02]} bxc6 {[%emt 0:00:07]} 7. e5 {[%emt 0:00:01]} Nd5 {[%emt 0:00:10]} 8. Ne4 {[%emt 0:00:03]} Qc7 {[%emt 0:00:34]} 9. f4 {[%emt 0:00:05]} Qb6 {[%emt 0:00:07]} 10. c4 {[%emt 0:00:04]} Bb4+ {[%emt 0:00:11]} 11. Ke2 {[%emt 0:00:03]} f5 {[%emt 0:00:22]} 12. exf6 {[%emt 0:00:05]} Nxf6 {[%emt 0:00:08]} 13. Be3 {[%emt 0:00:02]} Qd8 {[%emt 0:00:15]} 14. Nd6+ {[%emt 0:00:04]} Bxd6 {[%emt 0:00:10]} 15. Qxd6 {[%emt 0:00:03]} Bb7 {[%emt 0:00:16]} 16. Kd1 {[%emt 0:00:04]} c5 {[%emt 0:01:46]} 17. Qxc5 {[%emt 0:00:03]} Be4 {[%emt 0:00:13]} 18. Qa3 {[%emt 0:00:12]} Qe7 {[%emt 0:31:24]} 19. Qxe7+ {[%emt 0:14:22]} Kxe7 {[%emt 0:00:06]} 20. Ke1 {[%emt 0:00:02]} Rab8 {[%emt 0:14:11]} 21. b4 {[%emt 0:07:34]} Rhc8 {[%emt 0:10:50]} 22. a3 {[%emt 0:14:10]} a5 {[%emt 0:07:53]} 23. b5 {[%emt 0:21:16]} d6 {[%emt 0:02:18]} 24. Bd4 {[%emt 0:04:05]} Nd7 {[%emt 0:07:33]} 25. Kd2 {[%emt 0:06:17]} d5 {[%emt 0:05:59]} 26. Rc1 {[%emt 0:12:22]} g5 {[%emt 0:06:41]} 27. c5 {[%emt 0:04:43]} gxf4 {[%emt 0:00:56]} 28. c6 {[%emt 0:00:16]} e5 {[%emt 0:01:42]} 29. Bc3 {[%emt 0:08:16]} Nc5 {[%emt 0:02:00]} 30. Bxe5 {[%emt 0:02:42]} Nb3+ {[%emt 0:00:06]} 31. Kd1 {[%emt 0:01:34]} Nxc1 {[%emt 0:00:15]} 32. Kxc1 {[%emt 0:06:17]} Bxg2 {[%emt 0:03:25]} 33. Bxg2 {[%emt 0:00:39]} Rxb5 {[%emt 0:00:05]} 34. c7 {[%emt 0:00:26]} Rc5+ {[%emt 0:01:01]} 35. Kb2 {[%emt 0:01:12]} Rg8 {[%emt 0:00:28]} 36. Bh3 {[%emt 0:00:26]} f3 {[%emt 0:00:21]} 37. Rf1 {[%emt 0:00:37]} d4 {[%emt 0:00:35]} 38. Bg3 {[%emt 0:00:33]} Rxg3 {[%emt 0:00:49]} 39. hxg3 {[%emt 0:00:05]} Rxc7 {[%emt 0:00:05]} 40. Rxf3 {[%emt 0:00:04]} Kd6 {[%emt 0:00:21]} 41. Bf1 {[%emt 0:31:20]} a4 {[%emt 0:07:05]} 42. Bd3 {[%emt 0:00:00]} Rc3 {[%emt 0:00:55]} 43. Be2 {[%emt 0:00:00]} Rc7 {[%emt 0:02:00]} 44. Bd1 {[%emt 0:00:00]} Ke5 {[%emt 0:06:26]} 45. Bc2 {[%emt 0:00:00]} Rg7 {[%emt 0:00:46]} 46. Bxa4 {[%emt 0:00:00]} Ke4 {[%emt 0:02:44]} 47. Bc6+ {[%emt 0:00:00]} Ke5 {[%emt 0:00:04]} 48. a4 {[%emt 0:00:00]} Rc7 {[%emt 0:00:13]} 49. Bb5 {[%emt 0:00:00]} Ke4 {[%emt 0:00:29]} 50. Rb3 {[%emt 0:00:00]} Kd5 {[%emt 0:01:32]} 51. a5 {[%emt 0:00:00]} Kc5 {[%emt 0:00:30]} 52. Bd3 {[%emt 0:00:00]} Re7 {[%emt 0:00:54]} 53. a6 {[%emt 0:00:00]} Kc6 {[%emt 0:00:12]} 54. Bf1 {[%emt 0:00:00]} Kc5 {[%emt 0:01:49]} 55. Rb7 {[%emt 0:00:00]} Re8 {[%emt 0:00:57]} 56. a7 {[%emt 0:00:00]} Ra8 {[%emt 0:00:06]} 57. Bg2 {[%emt 0:00:00]} 1-0

[Event "FIDE World Junior U20-ch Girls 2025"]
[Site "Petrovac"]
[Date "2025.03.03"]
[Round "7.10"]
[White "Kurmangaliyeva, Liya"]
[Black "Khamdamova, Afruza"]
[Result "0-1"]
[Annotator "RC"]
[ECO "D37"]
[WhiteElo "2251"]
[BlackElo "2354"]
[PlyCount "154"]
[EventDate "2025.02.23"]
[EventType "swiss"]
[EventCountry "MNE"]
[SourceTitle "playchess.com"]
[Source "ChessBase"]
[SourceQuality "1"]
[TimeControl "40/5400+30:1800+30"]

1. d4 {[%emt 0:00:29]} d5 {[%emt 0:00:16]} 2. c4 {[%emt 0:00:12]} e6 {[%emt 0:00:05]} 3. Nf3 {[%emt 0:00:14]} Nf6 {[%emt 0:00:05]} 4. Nc3 {[%emt 0:00:13]} Be7 {[%emt 0:00:25]} 5. h3 {[%emt 0:00:17]} c6 {[%emt 0:09:59]} 6. e3 {[%emt 0:00:29]} O-O {[%emt 0:07:46]} 7. Bd3 {[%emt 0:00:19]} b6 {[%emt 0:00:19]} 8. O-O {[%emt 0:01:16]} Bb7 {[%emt 0:02:05]} 9. Qe2 {[%emt 0:03:34]} Nbd7 {[%emt 0:02:25]} 10. b3 {[%emt 0:00:49]} c5 {[%emt 0:13:42]} 11. Bb2 {[%emt 0:09:15]} Rc8 {[%emt 0:00:54]} 12. Rfd1 {[%emt 0:04:08]} Qc7 {[%emt 0:03:43]} 13. cxd5 {[%emt 0:03:52]} exd5 {[%emt 0:02:01]} 14. Rac1 {[%emt 0:00:23]} Qb8 {[%emt 0:00:44]} 15. Bf5 {[%emt 0:05:14]} Rcd8 {[%emt 0:04:10]} 16. Ne5 {[%emt 0:15:36]} cxd4 {[%emt 0:09:21]} 17. exd4 {[%emt 0:03:20]} Bd6 {[%emt 0:02:47]} 18. Nb5 {[%emt 0:03:38]} a6 {[%emt 0:06:15]} 19. Nxd6 {[%emt 0:02:55]} Qxd6 {[%emt 0:00:04]} 20. Re1 {[%emt 0:01:15]} g6 {[%emt 0:01:03]} 21. Bd3 {[%emt 0:05:35]} b5 {[%emt 0:00:51]} 22. Qd2 {[%emt 0:06:07]} b4 {[%emt 0:07:42]} 23. Rc2 {[%emt 0:04:27]} Rfe8 {[%emt 0:02:28]} 24. Qf4 {[%emt 0:03:14]} Re7 {[%emt 0:03:54]} 25. Rec1 {[%emt 0:01:25]} Nh5 {[%emt 0:01:09]} 26. Qd2 {[%emt 0:05:13]} Nb8 {[%emt 0:01:19]} 27. Be2 {[%emt 0:02:57]} Ng7 {[%emt 0:03:07]} 28. Nd3 {[%emt 0:00:25]} a5 {[%emt 0:00:57]} 29. Nc5 {[%emt 0:00:09]} Bc8 {[%emt 0:03:52]} 30. Na4 {[%emt 0:06:03]} Bf5 {[%emt 0:01:56]} 31. Rc5 {[%emt 0:00:05]} Rde8 {[%emt 0:00:15]} 32. Bf1 {[%emt 0:01:02]} Ne6 {[%emt 0:01:22]} 33. Rb5 {[%emt 0:04:46]} Nd7 {[%emt 0:00:22]} 34. Re1 {[%emt 0:02:07]} Nf6 {[%emt 0:06:06]} 35. Rb6 {[%emt 0:01:05]} Qd8 {[%emt 0:00:53]} 36. Bb5 {[%emt 0:01:08]} Rf8 {[%emt 0:00:45]} 37. f3 {[%emt 0:00:35]} Nc7 {[%emt 0:01:41]} 38. Bf1 {[%emt 0:01:33]} Rfe8 {[%emt 0:01:09]} 39. Rc1 {[%emt 0:00:52]} Kg7 {[%emt 0:00:47]} 40. Rbc6 {[%emt 0:01:42]} h5 {[%emt 0:01:12]} 41. Qf4 {[%emt 0:03:52]} Ne6 {[%emt 0:07:33]} 42. Qe5 {[%emt 0:01:44]} h4 {[%emt 0:02:37]} 43. Nb6 {[%emt 0:04:32]} Qb8 {[%emt 0:04:31]} 44. Rd6 {[%emt 0:04:25]} Kg8 {[%emt 0:01:13]} 45. Rcc6 {[%emt 0:01:57]} Nd8 {[%emt 0:02:53]} 46. Rxd8 {[%emt 0:05:28]} Qxd8 {[%emt 0:01:54]} 47. Qxf6 {[%emt 0:00:25]} Re1 {[%emt 0:05:16]} 48. Qxd8 {[%emt 0:05:58]} Rxd8 {[%emt 0:00:08]} 49. Kf2 {[%emt 0:00:42]} Rb1 {[%emt 0:01:22]} 50. Bc1 {[%emt 0:00:07]} Ra1 {[%emt 0:00:47]} 51. Bg5 {[%emt 0:00:56]} Rxa2+ {[%emt 0:00:18]} 52. Ke3 {[%emt 0:00:52]} Re8+ {[%emt 0:00:22]} 53. Kf4 {[%emt 0:00:04]} Rf2 {[%emt 0:00:57]} 54. Bxh4 {[%emt 0:01:35]} Rxf1 {[%emt 0:00:08]} 55. Nxd5 {[%emt 0:00:08]} Re6 {[%emt 0:02:23]} 56. Ne7+ {[%emt 0:01:10]} Kg7 {[%emt 0:00:10]} 57. Rc5 {[%emt 0:01:46]} a4 {[%emt 0:03:33]} 58. bxa4 {[%emt 0:01:04]} Bd3 {[%emt 0:00:51]} 59. Rc8 {[%emt 0:02:08]} f6 {[%emt 0:01:19]} 60. Rc7 {[%emt 0:01:10]} g5+ {[%emt 0:00:06]} 61. Kg4 {[%emt 0:00:04]} Kf8 {[%emt 0:00:16]} 62. Bg3 {[%emt 0:01:19]} b3 {[%emt 0:00:18]} 63. Rb7 {[%emt 0:00:20]} b2 {[%emt 0:00:49]} 64. Rxb2 {[%emt 0:00:08]} Kxe7 {[%emt 0:00:04]} 65. Rb7+ {[%emt 0:00:03]} Ke8 {[%emt 0:00:32]} 66. d5 {[%emt 0:00:07]} Re7 {[%emt 0:00:13]} 67. Bc7 {[%emt 0:02:44]} Rb1 {[%emt 0:01:12]} 68. Ra7 {[%emt 0:00:26]} Rb2 {[%emt 0:00:19]} 69. g3 {[%emt 0:00:31]} Bc4 {[%emt 0:01:00]} 70. d6 {[%emt 0:00:30]} Be6+ {[%emt 0:00:04]} 71. Kh5 {[%emt 0:00:10]} Rg7 {[%emt 0:01:50]} 72. Kh6 {[%emt 0:00:36]} Rg8 {[%emt 0:00:53]} 73. Ba5 {[%emt 0:01:22]} Bf5 {[%emt 0:00:25]} 74. Ra8+ {[%emt 0:00:36]} Kf7 {[%emt 0:00:04]} 75. Ra7+ {[%emt 0:00:17]} Ke6 {[%emt 0:00:11]} 76. Bc7 {[%emt 0:00:09]} Rg2 {[%emt 0:00:59]} 77. g4 {[%emt 0:01:04]} Bd3 {[%emt 0:00:00]} 0-1

[Event "FIDE World Junior U20-ch Girls 2025"]
[Site "Petrovac"]
[Date "2025.03.03"]
[Round "7.11"]
[White "Karimova, Guldona"]
[Black "Kairbekova, Amina"]
[Result "1/2-1/2"]
[Annotator "RC"]
[ECO "B72"]
[WhiteElo "2200"]
[BlackElo "2336"]
[PlyCount "68"]
[EventDate "2025.02.23"]
[EventType "swiss"]
[EventCountry "MNE"]
[SourceTitle "playchess.com"]
[Source "ChessBase"]
[SourceQuality "1"]
[TimeControl "40/5400+30:1800+30"]

1. e4 {[%emt 0:00:42]} c5 {[%emt 0:00:04]} 2. Nf3 {[%emt 0:00:21]} d6 {[%emt 0:00:04]} 3. d4 {[%emt 0:00:05]} cxd4 {[%emt 0:00:03]} 4. Nxd4 {[%emt 0:00:05]} Nf6 {[%emt 0:00:03]} 5. Nc3 {[%emt 0:00:06]} g6 {[%emt 0:00:03]} 6. Be3 {[%emt 0:00:10]} Nc6 {[%emt 0:00:08]} 7. f3 {[%emt 0:02:24]} h5 {[%emt 0:00:06]} 8. Bc4 {[%emt 0:02:40]} Bd7 {[%emt 0:00:09]} 9. Bb3 {[%emt 0:01:59]} Bg7 {[%emt 0:00:38]} 10. Qd2 {[%emt 0:11:08]} Na5 {[%emt 0:00:21]} 11. Nd5 {[%emt 0:04:25]} Nxb3 {[%emt 0:03:37]} 12. axb3 {[%emt 0:00:34]} O-O {[%emt 0:04:37]} 13. O-O {[%emt 0:03:55]} Re8 {[%emt 0:09:45]} 14. c4 {[%emt 0:06:29]} Nxd5 {[%emt 0:07:51]} 15. exd5 {[%emt 0:03:33]} e5 {[%emt 0:00:49]} 16. dxe6 {[%emt 0:00:25]} Bxe6 {[%emt 0:00:15]} 17. f4 {[%emt 0:15:23]} Qf6 {[%emt 0:05:18]} 18. f5 {[%emt 0:16:36]} Bxf5 {[%emt 0:00:13]} 19. Nxf5 {[%emt 0:03:07]} gxf5 {[%emt 0:00:08]} 20. Rxa7 {[%emt 0:03:21]} Rxa7 {[%emt 0:00:57]} 21. Bxa7 {[%emt 0:00:02]} Ra8 {[%emt 0:06:59]} 22. Qf2 {[%emt 0:05:16]} f4 {[%emt 0:03:42]} 23. Kh1 {[%emt 0:07:44]} Qe5 {[%emt 0:08:00]} 24. h3 {[%emt 0:04:10]} b5 {[%emt 0:09:20]} 25. Rd1 {[%emt 0:02:22]} Qxb2 {[%emt 0:08:51]} 26. Qxb2 {[%emt 0:00:43]} Bxb2 {[%emt 0:00:08]} 27. Bd4 {[%emt 0:00:20]} Bxd4 {[%emt 0:00:13]} 28. Rxd4 {[%emt 0:00:01]} b4 {[%emt 0:01:29]} 29. Rxd6 {[%emt 0:01:12]} Ra1+ {[%emt 0:02:47]} 30. Kh2 {[%emt 0:00:01]} Ra2 {[%emt 0:00:12]} 31. Rf6 {[%emt 0:02:13]} Rb2 {[%emt 0:00:29]} 32. Rxf4 {[%emt 0:00:02]} Rxb3 {[%emt 0:00:05]} 33. c5 {[%emt 0:00:07]} Kg7 {[%emt 0:01:06]} 34. c6 {[%emt 0:00:27]} Rc3 {[%emt 0:01:11]} 1/2-1/2

[Event "FIDE World Junior U20-ch Girls 2025"]
[Site "Petrovac"]
[Date "2025.03.03"]
[Round "7.12"]
[White "Wang, Chuqiao"]
[Black "Velpula Sarayu"]
[Result "0-1"]
[Annotator "ChessBase"]
[ECO "E64"]
[WhiteElo "2227"]
[BlackElo "2315"]
[PlyCount "82"]
[EventDate "2025.02.23"]
[EventType "swiss"]
[EventCountry "MNE"]
[SourceTitle "playchess.com"]
[Source "ChessBase"]
[SourceQuality "1"]
[TimeControl "40/5400+30:1800+30"]

1. d4 {[%emt 0:00:02]} Nf6 {[%emt 0:02:04]} 2. c4 {[%emt 0:00:20]} g6 {[%emt 0:00:28]} 3. g3 {[%emt 0:00:27]} Bg7 {[%emt 0:00:27]} 4. Nf3 {[%emt 0:00:25]} O-O {[%emt 0:00:32]} 5. Bg2 {[%emt 0:00:35]} d6 {[%emt 0:00:33]} 6. Nc3 {[%emt 0:00:28]} c5 {[%emt 0:00:35]} 7. d5 {[%emt 0:00:33]} e6 {[%emt 0:00:45]} 8. O-O {[%emt 0:00:40]} Re8 {[%emt 0:00:54]} 9. Re1 {[%emt 0:01:05]} exd5 {[%emt 0:01:29]} 10. cxd5 {[%emt 0:00:55]} Nbd7 {[%emt 0:00:41]} 11. Bf4 {[%emt 0:06:50]} Ng4 {[%emt 0:00:50]} 12. Qc2 {[%emt 0:06:51]} Nde5 {[%emt 0:04:39]} 13. Nxe5 {[%emt 0:10:47]} Nxe5 {[%emt 0:01:03]} 14. a4 {[%emt 0:10:46]} a6 {[%emt 0:05:01]} 15. h3 {[%emt 0:12:24]} Rb8 {[%emt 0:09:31]} 16. Ne4 {[%emt 0:03:25]} h6 {[%emt 0:05:34]} 17. Nd2 {[%emt 0:01:30]} b5 {[%emt 0:07:59]} 18. axb5 {[%emt 0:01:07]} axb5 {[%emt 0:00:19]} 19. Kh2 {[%emt 0:01:52]} Bd7 {[%emt 0:17:45]} 20. Ra6 {[%emt 0:05:12]} Rb6 {[%emt 0:09:23]} 21. Ra7 {[%emt 0:02:03]} Re7 {[%emt 0:16:06]} 22. Rea1 {[%emt 0:04:46]} Bf5 {[%emt 0:01:01]} 23. Be4 {[%emt 0:06:25]} Bxe4 {[%emt 0:05:04]} 24. Nxe4 {[%emt 0:00:05]} Rxa7 {[%emt 0:00:10]} 25. Rxa7 {[%emt 0:00:07]} Qb8 {[%emt 0:00:30]} 26. Ra2 {[%emt 0:19:51]} Qb7 {[%emt 0:00:12]} 27. Qb3 {[%emt 0:00:11]} c4 {[%emt 0:01:35]} 28. Qe3 {[%emt 0:00:30]} g5 {[%emt 0:03:41]} 29. Bxe5 {[%emt 0:00:16]} Bxe5 {[%emt 0:00:05]} 30. f4 {[%emt 0:01:10]} gxf4 {[%emt 0:00:50]} 31. gxf4 {[%emt 0:00:02]} Bg7 {[%emt 0:00:01]} 32. Ra1 {[%emt 0:01:24]} Bxb2 {[%emt 0:01:11]} 33. Rb1 {[%emt 0:01:41]} Bh8 {[%emt 0:03:32]} 34. Nd2 {[%emt 0:01:46]} c3 {[%emt 0:01:48]} 35. Nc4 {[%emt 0:00:40]} bxc4 {[%emt 0:00:04]} 36. Rxb6 {[%emt 0:00:43]} Qxd5 {[%emt 0:01:02]} 37. Rb8+ {[%emt 0:00:32]} Kh7 {[%emt 0:00:01]} 38. Rb1 {[%emt 0:00:30]} Bd4 {[%emt 0:00:50]} 39. Qg3 {[%emt 0:00:32]} Qe4 {[%emt 0:00:37]} 40. Re1 {[%emt 0:00:23]} Be3 {[%emt 0:00:18]} 41. Rf1 {[%emt 0:07:16]} c2 {[%emt 0:00:11]} 0-1

[Event "FIDE World Junior U20-ch Girls 2025"]
[Site "Petrovac"]
[Date "2025.03.03"]
[Round "7.13"]
[White "Liuviann, Cecilia Natalie"]
[Black "Karmanova, Olga Dm."]
[Result "0-1"]
[Annotator "NA"]
[ECO "B50"]
[WhiteElo "1964"]
[BlackElo "2292"]
[PlyCount "92"]
[EventDate "2025.02.23"]
[EventType "swiss"]
[EventCountry "MNE"]
[SourceTitle "playchess.com"]
[Source "ChessBase"]
[SourceQuality "1"]
[TimeControl "40/5400+30:1800+30"]

1. e4 {[%emt 0:02:09]} c5 {[%emt 0:00:05]} 2. Nf3 {[%emt 0:00:16]} d6 {[%emt 0:00:05]} 3. c3 {[%emt 0:01:01]} Nf6 {[%emt 0:00:36]} 4. h3 {[%emt 0:00:09]} Nc6 {[%emt 0:00:29]} 5. Bd3 {[%emt 0:00:28]} d5 {[%emt 0:01:29]} 6. e5 {[%emt 0:04:53]} c4 {[%emt 0:00:32]} 7. Bc2 {[%emt 0:03:01]} Ne4 {[%emt 0:00:31]} 8. d3 {[%emt 0:05:05]} cxd3 {[%emt 0:00:07]} 9. Qxd3 {[%emt 0:00:22]} Bf5 {[%emt 0:07:51]} 10. Qe2 {[%emt 0:00:29]} e6 {[%emt 0:00:55]} 11. O-O {[%emt 0:13:32]} Bc5 {[%emt 0:06:23]} 12. Be3 {[%emt 0:05:00]} Qb6 {[%emt 0:03:18]} 13. Bxc5 {[%emt 0:02:01]} Qxc5 {[%emt 0:00:06]} 14. Kh2 {[%emt 0:00:20]} O-O {[%emt 0:02:33]} 15. Bd3 {[%emt 0:38:06]} f6 {[%emt 0:08:13]} 16. b4 {[%emt 0:01:13]} Qb6 {[%emt 0:00:58]} 17. b5 {[%emt 0:03:30]} Nxe5 {[%emt 0:02:02]} 18. Nxe5 {[%emt 0:00:06]} Qc7 {[%emt 0:05:10]} 19. g3 {[%emt 0:13:06]} Qxe5 {[%emt 0:01:46]} 20. f4 {[%emt 0:01:44]} Qd6 {[%emt 0:04:29]} 21. Bxe4 {[%emt 0:00:49]} Bxe4 {[%emt 0:00:05]} 22. Nd2 {[%emt 0:00:06]} Bf5 {[%emt 0:01:37]} 23. Rae1 {[%emt 0:01:41]} Rae8 {[%emt 0:01:49]} 24. Qe3 {[%emt 0:00:17]} b6 {[%emt 0:04:39]} 25. Nf3 {[%emt 0:00:12]} Be4 {[%emt 0:01:07]} 26. Nd2 {[%emt 0:00:25]} Bg6 {[%emt 0:00:15]} 27. Nf3 {[%emt 0:00:49]} e5 {[%emt 0:01:11]} 28. Nh4 {[%emt 0:01:08]} exf4 {[%emt 0:11:06]} 29. Qxf4 {[%emt 0:00:07]} Qxf4 {[%emt 0:00:03]} 30. gxf4 {[%emt 0:00:08]} Bd3 {[%emt 0:06:06]} 31. Rg1 {[%emt 0:01:37]} Bxb5 {[%emt 0:04:27]} 32. Nf5 {[%emt 0:00:08]} Rxe1 {[%emt 0:00:14]} 33. Rxe1 {[%emt 0:00:04]} Re8 {[%emt 0:00:21]} 34. Rxe8+ {[%emt 0:02:35]} Bxe8 {[%emt 0:02:18]} 35. a3 {[%emt 0:00:06]} Kf8 {[%emt 0:00:45]} 36. Kg3 {[%emt 0:00:28]} g6 {[%emt 0:00:56]} 37. Ne3 {[%emt 0:00:39]} Bf7 {[%emt 0:00:13]} 38. Kf3 {[%emt 0:01:01]} Ke7 {[%emt 0:00:17]} 39. Ng4 {[%emt 0:00:18]} Be6 {[%emt 0:01:08]} 40. Nf2 {[%emt 0:00:06]} Kd6 {[%emt 0:00:16]} 41. Ke3 {[%emt 0:30:35]} Kc5 {[%emt 0:30:16]} 42. Kd2 {[%emt 0:00:00]} Kc4 {[%emt 0:00:00]} 43. h4 {[%emt 0:00:00]} Kb3 {[%emt 0:00:00]} 44. Nd3 {[%emt 0:00:00]} Kxa3 {[%emt 0:00:00]} 45. Nb4 {[%emt 0:00:00]} a5 {[%emt 0:00:00]} 46. Nc6 {[%emt 0:00:00]} Kb2 {[%emt 0:00:00]} 0-1